bitfinex/quotes_SOLUSD_20240628
["timestamp","ask_amount","ask_price","bid_price","bid_amount"]
[1719580641517,22.31936027,144.36,144.29,10.92959133]
[1719580642590,22.31936027,144.36,144.3,45.0]
[1719580642787,11.81581379,144.35,144.3,45.0]
[1719580643010,20.0,144.34,144.3,45.0]
[1719580643523,20.0,144.36,144.3,45.0]
[1719580644515,100.0,144.35,144.3,45.0]
[1719580644692,20.0,144.34,144.3,45.0]
[1719580644890,25.76767129,144.36,144.3,45.0]
[1719580645195,111.81008346,144.35,144.3,45.0]
[1719580645387,20.0,144.34,144.3,45.0]
[1719580645590,141.76,144.33,144.26,6.3657]
[1719580645799,61.76,144.32,144.25,16.5821]
[1719580646009,100.0,144.31,144.25,16.5821]
[1719580646223,100.0,144.31,144.22,6.5397]
[1719580646224,61.76,144.3,144.22,6.5397]
[1719580646549,184.11767129,144.29,144.22,6.5397]
[1719580646730,20.0,144.28,144.22,6.5397]
[1719580646885,61.76,144.28,144.2,16.4781]
[1719580647093,20.0,144.28,144.2,16.4781]
[1719580648696,20.0,144.32,144.2,16.4781]
[1719580648895,36.59,144.33,144.2,16.4781]
[1719580649108,5.76767129,144.34,144.21,1.38652076]
[1719580649413,159.33180252,144.34,144.21,1.38652076]
[1719580649621,11.80413123,144.33,144.21,45.0]
[1719580649802,53.56413123,144.33,144.21,45.0]
[1719580649996,41.76,144.33,144.21,45.0]
[1719580650216,20.0,144.32,144.21,45.0]
[1719580650411,64.07936027,144.32,144.2,16.4781]
[1719580651021,64.07936027,144.32,144.2,17.86481407]
[1719580651905,64.07936027,144.32,144.21,45.0]
[1719580652304,22.31936027,144.32,144.21,45.0]
[1719580652619,20.0,144.31,144.21,45.0]
[1719580652989,2.31936027,144.32,144.21,45.0]
[1719580655301,2.31936027,144.32,144.22,21.4935]
[1719580655504,2.31936027,144.32,144.23,45.0]
[1719580655811,20.0,144.36,144.23,45.0]
[1719580656722,136.59,144.37,144.24,15.2851]
[1719580656905,21.19237129,144.39,144.26,15.2851]
[1719580657095,21.19237129,144.39,144.27,1.38606571]
[1719580657297,21.19237129,144.39,144.27,46.38606571]
[1719580657524,15.4247,144.39,144.27,45.0]
[1719580658303,20.0,144.38,144.27,45.0]
[1719580659196,20.0,144.39,144.27,45.0]
[1719580659808,0.8175485,144.4,144.28,22.7356]
[1719580659997,0.8175485,144.4,144.29,45.0]
[1719580660196,0.8175485,144.4,144.3,1.38571009]
[1719580660613,0.8175485,144.4,144.29,45.0]
[1719580662121,0.8175485,144.4,144.3,17.46203863]
[1719580662319,0.8175485,144.4,144.31,45.0]
[1719580663131,0.8175485,144.4,144.32,1.38567227]
[1719580663702,0.8175485,144.4,144.33,6.3793]
[1719580663907,0.8175485,144.4,144.34,45.0]
[1719580666137,0.8175485,144.4,144.35,15.1802]
[1719580666324,0.8175485,144.4,144.36,45.0]
[1719580673519,0.8175485,144.4,144.35,15.1802]
[1719580673746,0.8175485,144.4,144.33,6.3793]
[1719580673944,0.8175485,144.4,144.32,16.1158]
[1719580675347,162.48773982,144.4,144.32,16.1158]
[1719580675554,42.782124,144.39,144.3,6.0498]
[1719580675727,20.0,144.39,144.3,6.0498]
[1719580678029,20.0,144.39,144.31,45.0]
[1719580679622,3.13627353,144.4,144.31,45.0]
[1719580679835,14.96940172,144.4,144.31,45.0]
[1719580680034,20.0,144.39,144.31,45.0]
[1719580680648,141.76,144.39,144.31,45.0]
[1719580680830,42.78534907,144.38,144.31,45.0]
[1719580681040,11.81924652,144.37,144.31,45.0]
[1719580681244,20.0,144.36,144.31,45.0]
[1719580681441,20.0,144.36,144.3,45.0]
[1719580681850,20.0,144.38,144.3,45.0]
[1719580682033,44.89627353,144.4,144.3,45.0]
[1719580682034,61.76,144.39,144.3,45.0]
[1719580682354,20.0,144.39,144.3,45.0]
[1719580682560,0.8175485,144.4,144.3,45.0]
[1719580682726,12.65923061,144.4,144.3,45.0]
[1719580682922,20.0,144.39,144.3,45.0]
[1719580683539,0.8175485,144.4,144.3,45.0]
[1719580688235,0.8175485,144.4,144.31,1.38575369]
[1719580688436,0.8175485,144.4,144.3,45.0]
[1719580688938,0.8175485,144.4,144.32,16.1964]
[1719580689141,0.8175485,144.4,144.33,45.0]
[1719580690176,0.8175485,144.4,144.34,8.02812529]
[1719580690335,7.21875936,144.48,144.35,60.0881]
[1719580690537,32.34,144.5,144.36,1.3849164]
[1719580690763,11.85901898,144.49,144.36,1.3849164]
[1719580690979,21.7866,144.52,144.38,6.0275]
[1719580690980,11.85901898,144.5,144.38,6.0275]
[1719580691261,21.7866,144.52,144.39,45.0]
[1719580691483,31.87122409,144.51,144.39,45.0]
[1719580691769,12.98635216,144.53,144.41,6.5445]
[1719580691932,6.49676192,144.54,144.42,46.384541]
[1719580692254,0.8175485,144.55,144.42,46.384541]
[1719580692255,12.70044597,144.55,144.42,45.0]
[1719580692443,12.70044597,144.55,144.43,1.38454031]
[1719580692642,12.70044597,144.55,144.42,45.0]
[1719580692837,12.70044597,144.55,144.43,1.38258047]
[1719580693234,12.70044597,144.55,144.43,15.2337]
[1719580693433,0.8175485,144.55,144.45,6.4969]
[1719580693637,0.8175485,144.55,144.46,46.38199148]
[1719580693968,0.8175485,144.55,144.46,45.0]
[1719580694470,0.8175485,144.55,144.47,1.38420046]
[1719580694681,0.8175485,144.55,144.46,45.0]
[1719580695779,0.8175485,144.55,144.45,6.4969]
[1719580695937,6.58521979,144.55,144.45,6.4969]
[1719580696136,20.0,144.54,144.45,6.4969]
[1719580696337,25.76767129,144.54,144.45,6.4969]
[1719580696554,11.88068037,144.53,144.43,15.2337]
[1719580696756,20.0,144.52,144.43,15.2337]
[1719580697073,25.76767129,144.52,144.43,15.2337]
[1719580697246,100.0,144.5,144.43,15.2337]
[1719580697457,20.0,144.49,144.38,22.4405]
[1719580697763,25.76767129,144.49,144.38,22.4405]
[1719580699254,25.76767129,144.49,144.39,45.0]
[1719580699851,20.0,144.49,144.39,45.0]
[1719580700051,20.0,144.52,144.39,45.0]
[1719580700387,11.87995581,144.51,144.39,45.0]
[1719580700544,20.0,144.5,144.39,45.0]
[1719580700744,20.0,144.52,144.39,45.0]
[1719580700943,11.87954846,144.51,144.39,45.0]
[1719580701145,20.0,144.5,144.39,45.0]
[1719580701975,20.0,144.52,144.39,45.0]
[1719580702281,11.87837774,144.51,144.39,45.0]
[1719580702574,6.3713,144.53,144.39,45.0]
[1719580702758,11.88778507,144.53,144.39,45.0]
[1719580702955,11.88778507,144.53,144.4,23.07146246]
[1719580703175,2.31872503,144.54,144.42,22.7574]
[1719580703373,2.31872503,144.54,144.43,45.0]
[1719580705255,2.31872503,144.54,144.42,22.7574]
[1719580706165,34.2135867,144.54,144.42,22.7574]
[1719580706381,22.31872503,144.54,144.42,22.7574]
[1719580706579,11.88632798,144.53,144.42,22.7574]
[1719580706758,20.0,144.52,144.42,22.7574]
[1719580707474,20.0,144.53,144.42,22.7574]
[1719580707662,17.65221498,144.52,144.42,22.7574]
[1719580707857,25.76767129,144.51,144.42,22.7574]
[1719580708073,11.88454369,144.5,144.42,22.7574]
[1719580708254,25.76767129,144.49,144.42,22.7574]
[1719580709083,11.86112846,144.48,144.42,22.7574]
[1719580709291,25.76767129,144.47,144.42,22.7574]
[1719580709488,25.76767129,144.47,144.42,16.2885]
[1719580709703,25.76767129,144.47,144.33,27.737415]
[1719580710268,25.76767129,144.47,144.31,259.8]
[1719580710571,25.76767129,144.47,144.31,265.34131918]
[1719580710775,25.76767129,144.47,144.32,21.38501394]
[1719580710972,25.76767129,144.47,144.33,1.38501839]
[1719580711387,25.76767129,144.47,144.32,20.0]
[1719580711568,20.0,144.47,144.32,20.0]
[1719580711765,20.0,144.5,144.32,20.0]
[1719580711966,11.86106063,144.49,144.33,1.38503015]
[1719580712266,20.0,144.48,144.33,6.952]
[1719580712575,20.0,144.48,144.34,26.952]
[1719580712777,5.76767129,144.51,144.34,26.952]
[1719580713083,11.86412703,144.53,144.34,26.952]
[1719580713281,55.94285206,144.54,144.35,6.952]
[1719580713481,11.86412703,144.53,144.35,6.952]
[1719580713870,2.31872503,144.54,144.36,20.0]
[1719580713871,14.18285206,144.54,144.36,20.0]
[1719580714590,14.18285206,144.54,144.35,20.0]
[1719580715487,14.18285206,144.54,144.36,0.93046296]
[1719580715789,2.31872503,144.54,144.35,20.0]
[1719580715995,34.17896531,144.54,144.35,20.0]
[1719580716212,22.31872503,144.54,144.35,20.0]
[1719580717071,20.0,144.54,144.35,20.0]
[1719580718003,11.85845613,144.53,144.35,20.0]
[1719580718181,20.0,144.52,144.34,36.34]
[1719580718386,20.0,144.52,144.35,27.737902]
[1719580718897,20.0,144.53,144.35,27.737902]
[1719580719209,15.8895,144.53,144.35,27.737902]
[1719580719508,15.433,144.51,144.36,20.0]
[1719580719807,15.433,144.49,144.37,6.952]
[1719580720001,15.433,144.49,144.38,26.952]
[1719580721284,15.433,144.49,144.38,20.0]
[1719580721605,15.433,144.49,144.36,20.0]
[1719580722610,15.433,144.49,144.37,6.952]
[1719580722806,15.433,144.49,144.38,20.0]
[1719580723371,15.433,144.49,144.37,26.952]
[1719580724194,15.433,144.49,144.37,20.0]
[1719580724397,15.433,144.49,144.35,27.737902]
[1719580724597,15.3664,144.47,144.34,36.34]
[1719580724777,15.3664,144.47,144.32,25.0]
[1719580724778,15.3664,144.47,144.33,27.740243]
[1719580724974,6.4132,144.46,144.33,27.740243]
[1719580725180,16.2235,144.45,144.33,27.740243]
[1719580725404,6.4132,144.44,144.33,27.740243]
[1719580725810,6.4132,144.44,144.34,20.0]
[1719580726106,15.7637,144.43,144.34,20.0]
[1719580731314,6.5622,144.42,144.34,20.0]
[1719580731517,15.1007,144.39,144.33,27.740243]
[1719580731814,15.1007,144.39,144.31,5.54131918]
[1719580732019,15.1007,144.39,144.29,27.748545]
[1719580732614,15.1007,144.39,144.3,32.32]
[1719580733614,15.1007,144.39,144.31,1.38513769]
[1719580733919,15.1007,144.39,144.33,32.32]
[1719580734112,15.1007,144.39,144.34,1.38506603]
[1719580734428,15.1007,144.39,144.33,32.32]
[1719580734759,15.1007,144.39,144.31,26.952]
[1719580735401,15.1007,144.39,144.32,6.952]
[1719580735608,15.1007,144.39,144.33,20.0]
[1719580736190,15.1007,144.39,144.32,26.952]
[1719580739826,15.1007,144.39,144.32,20.0]
[1719580740003,15.1007,144.39,144.31,6.952]
[1719580740197,15.1007,144.39,144.32,20.0]
[1719580740397,15.1007,144.39,144.3,20.0]
[1719580741005,6.5998,144.38,144.27,41.91806651]
[1719580741214,16.6124,144.37,144.27,41.91806651]
[1719580742106,16.6124,144.37,144.28,27.750484]
[1719580742901,16.6124,144.37,144.29,20.0]
[1719580743828,6.3735,144.36,144.27,5.56806651]
[1719580744030,15.5585,144.35,144.28,20.0]
[1719580744326,15.5585,144.35,144.27,27.753112]
[1719580744500,6.3735,144.34,144.27,27.753112]
[1719580744923,6.3735,144.34,144.24,265.45469018]
[1719580745320,6.3735,144.34,144.25,27.755401]
[1719580745524,6.3735,144.34,144.26,20.0]
[1719580746006,6.3735,144.34,144.27,6.952]
[1719580746405,6.3735,144.34,144.26,20.0]
[1719580747323,6.3735,144.34,144.27,8.33747996]
[1719580747712,6.3735,144.34,144.27,6.952]
[1719580749832,6.3735,144.34,144.28,1.3834719]
[1719580750009,6.3735,144.34,144.28,28.3354719]
[1719580750327,6.3735,144.34,144.28,21.3834719]
[1719580750523,15.5585,144.35,144.29,6.952]
[1719580750709,13.3925,144.35,144.29,6.952]
[1719580750905,13.3925,144.35,144.31,6.952]
[1719580751120,13.3925,144.35,144.32,20.0]
[1719580751511,13.3925,144.35,144.33,1.38528807]
[1719580753249,3.51524918,144.52,144.32,20.0]
[1719580753552,6.2893,144.51,144.33,100.0]
[1719580753857,6.2893,144.51,144.36,36.35]
[1719580754016,6.2893,144.51,144.37,20.0]
[1719580754215,6.2893,144.51,144.38,1.38420213]
[1719580755523,6.2893,144.51,144.36,20.0]
[1719580756462,16.132,144.5,144.36,20.0]
[1719580756745,16.132,144.5,144.39,32.28]
[1719580757127,16.132,144.5,144.4,1.38420035]
[1719580757517,16.132,144.5,144.4,21.38420035]
[1719580758119,16.132,144.5,144.4,20.0]
[1719580758542,16.132,144.5,144.42,32.28]
[1719580758729,16.132,144.5,144.43,1.38415248]
[1719580759629,16.132,144.5,144.44,1.38409203]
[1719580762931,16.132,144.5,144.45,33.66401226]
[1719580763141,13.03194919,144.5,144.45,32.28]
[1719580763552,13.03194919,144.5,144.46,1.38393081]
[1719580765453,13.03194919,144.5,144.45,32.28]
[1719580768249,3.05394919,144.5,144.45,32.28]
[1719580769258,3.05394919,144.5,144.41,32.28]
[1719580769565,3.05394919,144.5,144.43,32.28]
[1719580769948,3.05394919,144.5,144.44,1.38396294]
[1719580770541,3.05394919,144.5,144.43,32.28]
[1719580773554,3.05394919,144.5,144.44,6.2893]
[1719580774064,3.05394919,144.5,144.45,1.38409426]
[1719580774257,3.05394919,144.5,144.46,1.38397125]
[1719580774958,3.05394919,144.5,144.47,1.38397682]
[1719580775637,0.8175485,144.55,144.46,32.28]
[1719580776847,0.8175485,144.55,144.44,6.2893]
[1719580777049,0.8175485,144.55,144.44,38.5693]
[1719580778664,15.4271,144.53,144.44,38.5693]
[1719580778848,6.5009,144.52,144.44,38.5693]
[1719580780556,6.5009,144.52,144.45,1.38408359]
[1719580780758,6.5009,144.52,144.46,1.38403992]
[1719580781687,6.6286,144.5,144.44,6.2893]
[1719580781852,15.6035,144.49,144.44,6.2893]
[1719580782357,15.6035,144.49,144.41,32.28]
[1719580782562,15.6035,144.49,144.41,47.8835]
[1719580782956,15.6035,144.49,144.41,15.6035]
[1719580783355,6.3786,144.48,144.38,32.28]
[1719580783595,6.3786,144.48,144.35,15.07]
[1719580783793,6.3786,144.48,144.37,27.735333]
[1719580786398,6.3786,144.48,144.35,115.07]
[1719580786700,6.3786,144.48,144.38,32.28]
[1719580789705,16.0705,144.47,144.35,33.28525672]
[1719580789874,6.6152,144.46,144.36,20.0]
[1719580791380,6.6152,144.46,144.35,65.56525672]
[1719580792311,6.6152,144.46,144.36,1.38462113]
[1719580793175,6.6152,144.46,144.36,8.32562113]
[1719580795506,6.6152,144.46,144.36,6.941]
[1719580796012,6.6152,144.46,144.38,32.28]
[1719580796310,6.6152,144.46,144.39,1.38432683]
[1719580796492,6.6152,144.46,144.38,32.28]
[1719580797091,6.6152,144.46,144.39,6.941]
[1719580797605,6.6152,144.46,144.4,1.38436992]
[1719580798108,6.6152,144.46,144.38,32.28]
[1719580798477,6.6152,144.46,144.39,6.941]
[1719580799091,6.6152,144.46,144.38,32.28]
[1719580802716,6.6152,144.46,144.39,6.941]
[1719580803035,6.6152,144.46,144.38,32.28]
[1719580803510,6.6152,144.46,144.39,6.941]
[1719580803816,6.6152,144.46,144.38,32.28]
[1719580804007,15.1374,144.45,144.35,33.28525672]
[1719580804221,6.2452,144.44,144.35,5.55223172]
[1719580804407,16.491,144.43,144.32,32.28]
[1719580804714,16.491,144.43,144.33,20.0]
[1719580805310,16.491,144.43,144.34,1.38490991]
[1719580805626,16.491,144.43,144.33,20.0]
[1719580806005,16.491,144.43,144.34,6.941]
[1719580806402,16.491,144.43,144.35,39.221]
[1719580806605,9.90398241,144.43,144.35,32.28]
[1719580807429,9.90398241,144.43,144.36,20.0]
[1719580810896,9.90398241,144.43,144.38,32.28]
[1719580811097,9.90398241,144.43,144.39,1.38449192]
[1719580811299,9.90398241,144.43,144.38,32.28]
[1719580812529,9.90398241,144.43,144.34,32.28]
[1719580814806,9.90398241,144.43,144.35,1.38455683]
[1719580815009,9.90398241,144.43,144.37,32.28]
[1719580815223,9.90398241,144.43,144.38,1.38450036]
[1719580815409,9.90398241,144.43,144.38,20.0]
[1719580815604,6.2452,144.44,144.4,32.28]
[1719580815806,6.2452,144.44,144.41,1.38434288]
[1719580816200,8.37322666,144.47,144.41,1.38434288]
[1719580816412,6.37322666,144.47,144.41,1.38434288]
[1719580816826,6.37322666,144.47,144.4,32.28]
[1719580817212,6.37322666,144.47,144.41,6.941]
[1719580817913,6.37322666,144.47,144.42,1.3841434]
[1719580818109,6.37322666,144.47,144.41,6.941]
[1719580819318,6.2092,144.53,144.41,6.941]
[1719580819908,6.2092,144.53,144.42,1.38406708]
[1719580820103,6.2092,144.53,144.43,1.38396007]
[1719580820303,6.2092,144.53,144.4,32.28]
[1719580820608,6.2092,144.53,144.39,32.28]
[1719580821537,6.2092,144.53,144.38,53.41452971]
[1719580821538,6.0906,144.51,144.38,33.41452971]
[1719580821716,6.0906,144.49,144.38,5.68361371]
[1719580821915,6.0906,144.49,144.35,702.618089]
[1719580822219,6.0906,144.49,144.35,442.818089]
[1719580822417,10.316,144.48,144.35,442.818089]
[1719580822621,10.316,144.48,144.36,1.38441052]
[1719580823214,10.316,144.48,144.35,448.49389401]
[1719580823442,10.316,144.48,144.38,32.28]
[1719580823641,10.316,144.48,144.39,1.3842649]
[1719580823943,10.316,144.48,144.38,32.28]
[1719580824317,10.316,144.48,144.39,1.38438102]
[1719580824520,10.316,144.48,144.4,1.3843476]
[1719580825333,10.316,144.48,144.41,1.38437615]
[1719580826543,10.316,144.48,144.39,6.941]
[1719580827027,10.316,144.48,144.38,32.28]
[1719580828433,10.316,144.48,144.39,6.941]
[1719580828823,10.316,144.48,144.35,33.41389401]
[1719580829124,10.316,144.46,144.35,33.41389401]
[1719580830856,6.653,144.45,144.35,33.41389401]
[1719580831060,6.653,144.43,144.35,5.67580501]
[1719580831235,6.653,144.43,144.31,430.439]
[1719580831419,6.653,144.43,144.33,27.741691]
[1719580831625,6.653,144.43,144.34,20.0]
[1719580832121,6.653,144.43,144.34,52.28]
[1719580832551,6.653,144.43,144.34,152.28]
[1719580833940,6.653,144.43,144.37,32.28]
[1719580834130,10.316,144.44,144.4,32.28]
[1719580834532,10.316,144.54,144.4,32.28]
[1719580834833,10.316,144.52,144.41,1.38416825]
[1719580835028,10.316,144.52,144.4,32.28]
[1719580835229,10.316,144.52,144.4,39.221]
[1719580835454,10.316,144.52,144.41,1.38415737]
[1719580835660,10.316,144.52,144.4,32.28]
[1719580837159,6.4113,144.51,144.4,32.28]
[1719580837326,6.4113,144.51,144.41,1.38402465]
[1719580837525,6.4113,144.51,144.41,21.38402465]
[1719580837731,6.4113,144.51,144.43,32.28]
[1719580837956,6.4113,144.51,144.44,1.38373468]
[1719580839030,6.4113,144.51,144.44,20.0]
[1719580840364,7.3388485,144.55,144.46,32.28]
[1719580840530,7.3388485,144.55,144.49,32.28]
[1719580840725,7.3388485,144.55,144.5,1.38348231]
[1719580841167,7.3388485,144.55,144.49,32.28]
[1719580842050,7.3388485,144.55,144.5,20.0]
[1719580843157,7.3388485,144.55,144.49,32.28]
[1719580843865,0.8175485,144.55,144.49,32.28]
[1719580844574,6.6156,144.58,144.52,32.28]
[1719580845769,6.6156,144.58,144.49,15.0011]
[1719580845770,6.6156,144.58,144.45,498.8025]
[1719580846090,6.6156,144.58,144.48,32.28]
[1719580846570,10.316,144.57,144.48,32.28]
[1719580848277,10.316,144.57,144.48,37.84447152]
[1719580855542,10.316,144.57,144.51,32.28]
[1719580856672,10.316,144.57,144.52,1.38327694]
[1719580857747,6.6156,144.58,144.52,1.38327694]
[1719580857946,6.6156,144.58,144.54,32.28]
[1719580858146,6.6156,144.58,144.55,1.38306987]
[1719580858361,0.8175485,144.69,144.55,1.38306987]
[1719580858362,6.3003,144.62,144.55,1.38306987]
[1719580858576,6.3003,144.62,144.54,32.28]
[1719580859163,6.3003,144.62,144.57,32.28]
[1719580859365,6.3003,144.62,144.58,1.38268462]
[1719580859862,6.3003,144.62,144.57,32.28]
[1719580860380,6.2009,144.65,144.6,32.28]
[1719580860558,6.2009,144.65,144.61,1.382503]
[1719580860748,0.8175485,144.69,144.61,1.382503]
[1719580860949,6.2009,144.68,144.61,1.382503]
[1719580861167,6.2009,144.68,144.6,32.28]
[1719580862963,6.2009,144.68,144.57,32.28]
[1719580863149,6.2009,144.68,144.53,276.2919]
[1719580863355,6.2009,144.68,144.54,32.28]
[1719580863669,6.2009,144.68,144.57,32.28]
[1719580864986,6.2009,144.68,144.54,32.28]
[1719580865790,6.098,144.66,144.54,32.28]
[1719580866376,6.098,144.66,144.53,5.69699436]
[1719580866564,6.4782,144.64,144.5,32.28]
[1719580866761,6.4782,144.62,144.48,259.8]
[1719580866966,26.4782,144.61,144.47,59.993367]
[1719580867186,26.4782,144.61,144.47,65.69392411]
[1719580868476,26.4782,144.61,144.47,165.69392411]
[1719580868678,6.4782,144.61,144.51,6.941]
[1719580870767,6.4782,144.61,144.52,1.38303393]
[1719580871562,6.4782,144.61,144.51,6.941]
[1719580871762,6.4782,144.61,144.53,32.28]
[1719580872679,0.8175485,144.69,144.54,29.08549901]
[1719580872883,0.8175485,144.69,144.56,32.28]
[1719580873689,0.8175485,144.69,144.55,32.28]
[1719580875063,0.8175485,144.69,144.56,1.38245008]
[1719580875271,0.8175485,144.69,144.55,32.28]
[1719580875272,0.8175485,144.69,144.58,32.28]
[1719580875875,1.7516,144.68,144.58,32.28]
[1719580877172,1.7516,144.68,144.58,132.28]
[1719580877797,1.7516,144.68,144.58,32.28]
[1719580879284,1.7516,144.68,144.58,132.28]
[1719580879480,1.7516,144.68,144.59,1.3821783]
[1719580879886,1.7516,144.68,144.58,132.28]
[1719580880494,1.7516,144.68,144.58,32.28]
[1719580880700,1.7516,144.68,144.57,32.28]
[1719580880873,1.7516,144.68,144.54,59.982575]
[1719580881796,13.71826195,144.68,144.54,59.982575]
[1719580882173,20.8175485,144.69,144.54,59.982575]
[1719580882174,11.97383045,144.67,144.54,59.982575]
[1719580882383,1.7516,144.66,144.54,59.982575]
[1719580882573,1.7516,144.66,144.54,32.28]
[1719580882774,13.72543045,144.66,144.54,32.28]
[1719580884979,13.72543045,144.66,144.55,1.3827978]
[1719580885508,13.72543045,144.66,144.55,8.3237978]
[1719580885808,13.72543045,144.66,144.55,6.941]
[1719580886098,1.7516,144.66,144.54,32.28]
[1719580887287,1.7516,144.66,144.55,6.941]
[1719580887989,1.7516,144.66,144.57,39.221]
[1719580888192,1.7516,144.66,144.57,32.28]
[1719580888370,1.7516,144.66,144.57,39.221]
[1719580890188,1.7516,144.66,144.57,32.28]
[1719580891182,1.7516,144.66,144.54,32.28]
[1719580897893,1.7516,144.66,144.53,33.24875417]
[1719580898090,1.7516,144.66,144.54,32.28]
[1719580899506,1.7516,144.66,144.55,1.38292046]
[1719580900692,13.72391391,144.66,144.55,6.941]
[1719580900892,1.7516,144.66,144.55,6.941]
[1719580901925,1.7516,144.66,144.56,1.38256146]
[1719580902219,1.7516,144.66,144.55,32.28]
[1719580902892,1.7516,144.66,144.53,65.52875417]
[1719580903299,1.7516,144.65,144.53,65.52875417]
[1719580903505,1.7516,144.64,144.53,33.24875417]
[1719580903692,1.7516,144.63,144.53,33.24875417]
[1719580903888,1.7516,144.63,144.53,5.54415817]
[1719580904093,1.7516,144.63,144.49,15.0464]
[1719580904317,1.7516,144.63,144.52,20.0]
[1719580904821,1.7516,144.62,144.48,415.08]
[1719580905121,13.71727611,144.62,144.48,415.08]
[1719580905306,1.7516,144.61,144.48,415.08]
[1719580906917,1.7516,144.61,144.48,32.28]
[1719580907504,13.71147325,144.61,144.48,32.28]
[1719580907698,1.7516,144.61,144.48,32.28]
[1719580909305,1.7516,144.61,144.48,37.86531077]
[1719580910825,13.71303567,144.61,144.48,37.86531077]
[1719580911123,1.7516,144.61,144.48,37.86531077]
[1719580911903,1.7516,144.61,144.5,6.941]
[1719580912228,1.7516,144.61,144.54,6.941]
[1719580916536,1.7516,144.61,144.53,32.28]
[1719580916704,1.7516,144.61,144.54,1.38270773]
[1719580917106,1.7516,144.61,144.55,1.38271452]
[1719580917802,1.7516,144.61,144.56,32.28]
[1719580918702,1.7516,144.61,144.56,52.28]
[1719580919725,1.7516,144.66,144.57,6.941]
[1719580919936,1.7516,144.66,144.56,52.28]
[1719580921028,1.7516,144.66,144.57,6.941]
[1719580921337,1.7516,144.66,144.56,52.28]
[1719580925917,1.7516,144.66,144.53,37.78331371]
[1719580926235,1.7516,144.66,144.53,32.28]
[1719580926436,11.99016983,144.66,144.53,32.28]
[1719580926739,1.7516,144.65,144.53,32.28]
[1719580927410,1.7516,144.65,144.53,59.984446]
[1719580927612,1.7516,144.65,144.53,32.28]
[1719580928031,1.7516,144.65,144.54,20.0]
[1719580928337,13.73568723,144.65,144.54,20.0]
[1719580928546,1.7516,144.64,144.54,20.0]
[1719580928714,1.7516,144.64,144.51,388.4744428]
[1719580928715,1.7516,144.63,144.51,388.4744428]
[1719580929047,1.7516,144.62,144.51,388.4744428]
[1719580929341,1.7516,144.61,144.51,408.4744428]
[1719580929511,1.7516,144.61,144.52,32.28]
[1719580933831,1.7516,144.61,144.51,20.0]
[1719580938728,1.7516,144.61,144.54,32.28]
[1719580938921,1.7516,144.61,144.55,1.38263801]
[1719580940757,1.7516,144.61,144.55,8.32363801]
[1719580941663,1.7516,144.61,144.55,6.941]
[1719580942169,1.7516,144.61,144.54,32.28]
[1719580942347,1.7516,144.61,144.55,6.941]
[1719580942729,1.7516,144.61,144.54,132.28]
[1719580942937,1.7516,144.68,144.54,132.28]
[1719580943332,1.7516,144.68,144.57,32.28]
[1719580943834,13.71591266,144.68,144.57,32.28]
[1719580944039,1.7516,144.68,144.57,32.28]
[1719580944236,1.7516,144.68,144.58,1.38262293]
[1719580945363,1.7516,144.68,144.58,8.32362293]
[1719580947242,1.7516,144.68,144.58,1.38262293]
[1719580948839,1.7516,144.68,144.57,32.28]
[1719580950475,1.7516,144.68,144.58,1.38246991]